bitfinex/quotes_BTCUSD_20220109
["timestamp","ask_amount","ask_price","bid_price","bid_amount"]
[1641708485695,0.004,41749.0,41748.0,0.96536679]
[1641708485894,0.004,41749.0,41748.0,0.96736679]
[1641708486600,0.004,41749.0,41748.0,1.10600679]
[1641708486995,0.004,41749.0,41748.0,1.70390679]
[1641708487198,0.004,41749.0,41748.0,1.70190679]
[1641708487796,0.004,41749.0,41748.0,1.70490679]
[1641708489151,0.004,41749.0,41748.0,1.70190679]
[1641708489947,0.004,41749.0,41748.0,1.70490679]
[1641708490149,0.004,41749.0,41748.0,0.726742]
[1641708490349,0.004,41749.0,41748.0,0.635902]
[1641708490548,0.004,41749.0,41748.0,0.435902]
[1641708490753,0.004,41749.0,41748.0,0.435732]
[1641708491153,0.004,41749.0,41748.0,0.432732]
[1641708491751,0.004,41749.0,41748.0,0.482732]
[1641708491948,0.004,41749.0,41748.0,0.635732]
[1641708492352,0.004,41749.0,41748.0,1.03911593]
[1641708493314,0.004,41749.0,41748.0,1.03611593]
[1641708493515,0.004,41749.0,41748.0,1.03150181]
[1641708494015,0.004,41749.0,41748.0,1.03550181]
[1641708494616,0.004,41749.0,41748.0,1.15363181]
[1641708495216,0.004,41749.0,41748.0,1.14963181]
[1641708495818,0.00318675,41749.0,41748.0,1.74753181]
[1641708496017,0.00318675,41749.0,41748.0,1.75053181]
[1641708496449,0.00953859,41750.0,41749.0,0.7]
[1641708496757,0.00953859,41750.0,41749.0,2.38940856]
[1641708496948,0.01677609,41755.0,41750.0,0.7]
[1641708497147,0.01677609,41755.0,41754.0,0.99792772]
[1641708497349,0.00909091,41760.0,41754.0,0.99792772]
[1641708497350,0.00909091,41760.0,41755.0,0.4]
[1641708497548,0.00909091,41760.0,41758.0,1.44946322]
[1641708497746,0.00909091,41760.0,41758.0,1.60429322]
[1641708497946,0.00909091,41760.0,41758.0,1.75429322]
[1641708498151,0.00809091,41760.0,41759.0,0.385209]
[1641708498348,0.00809091,41760.0,41759.0,1.030909]
[1641708498648,0.00809091,41760.0,41759.0,1.64812472]
[1641708499646,0.00854744,41760.0,41759.0,1.64812472]
[1641708500047,0.00854744,41760.0,41759.0,1.65112472]
[1641708500696,0.00854744,41760.0,41759.0,2.15112472]
[1641708501096,0.00854744,41760.0,41759.0,2.14812472]
[1641708501898,0.00854744,41760.0,41759.0,2.15112472]
[1641708503101,0.00854744,41760.0,41759.0,2.14812472]
[1641708503503,0.00854744,41760.0,41759.0,1.630909]
[1641708503956,0.00853728,41760.0,41759.0,1.633909]
[1641708504353,0.00853728,41760.0,41759.0,2.07153072]
[1641708505054,0.00829567,41765.0,41761.0,0.109848]
[1641708505253,0.00829567,41765.0,41764.0,0.983109]
[1641708505454,0.00909091,41766.0,41764.0,0.983109]
[1641708505455,0.00909091,41771.0,41765.0,0.385209]
[1641708505651,0.00909091,41771.0,41768.0,0.983109]
[1641708505852,0.00909091,41771.0,41768.0,1.030909]
[1641708506052,0.00909091,41771.0,41769.0,0.27752117]
[1641708506253,0.00909091,41771.0,41770.0,1.030909]
[1641708506655,0.00909091,41771.0,41770.0,1.240749]
[1641708506852,0.00909091,41771.0,41770.0,1.235749]
[1641708507053,0.00909091,41771.0,41770.0,1.70514346]
[1641708507897,0.00909091,41771.0,41770.0,1.71504841]
[1641708508498,0.00954632,41771.0,41770.0,1.71504841]
[1641708508701,0.00954632,41771.0,41770.0,1.70504841]
[1641708509299,0.00954632,41771.0,41770.0,1.70204841]
[1641708509903,0.00954632,41771.0,41770.0,2.20504841]
[1641708511103,0.00954632,41771.0,41770.0,2.21082362]
[1641708511302,0.00954632,41771.0,41770.0,2.20782362]
[1641708511951,0.00954632,41771.0,41770.0,2.21082362]
[1641708512148,0.00759966,41775.0,41770.0,2.36747867]
[1641708512350,0.00259966,41775.0,41774.0,0.385209]
[1641708512551,0.00259966,41775.0,41774.0,1.77642051]
[1641708512748,0.00259966,41775.0,41774.0,1.78219572]
[1641708512950,0.00259966,41775.0,41774.0,2.13190868]
[1641708513248,0.00909091,41776.0,41774.0,2.13190868]
[1641708513449,0.00909091,41776.0,41775.0,0.83739321]
[1641708513650,0.00909091,41776.0,41775.0,1.04502539]
[1641708514050,0.00909091,41776.0,41775.0,1.49653859]
[1641708514249,0.00909091,41776.0,41775.0,0.59584118]
[1641708514452,0.00909091,41776.0,41775.0,1.09584118]
[1641708514850,0.00909091,41776.0,41775.0,0.49584118]
[1641708515300,0.00909091,41776.0,41775.0,0.433009]
[1641708515502,1.00909091,41776.0,41775.0,0.0478]
[1641708515702,1.7284473,41776.0,41771.0,0.059856]
[1641708515903,1.8015573,41776.0,41768.0,0.05985623]
[1641708516101,1.8015573,41776.0,41765.0,0.00040616]
[1641708516301,0.8015573,41776.0,41768.0,0.27348815]
[1641708516702,0.7284473,41776.0,41772.0,0.059853]
[1641708516900,0.7284473,41776.0,41773.0,0.059853]
[1641708517303,0.72890154,41776.0,41773.0,0.059853]
[1641708517504,0.72890154,41776.0,41773.0,0.109853]
[1641708518002,0.72890154,41776.0,41773.0,0.159853]
[1641708518405,0.72890157,41776.0,41774.0,0.05985]
[1641708518603,0.72766518,41776.0,41774.0,0.05985]
[1641708519247,0.72766518,41776.0,41774.0,0.10765]
[1641708520049,0.72327331,41776.0,41774.0,0.10765]
[1641708521549,0.72327331,41776.0,41775.0,0.26610549]
[1641708521550,0.72371747,41776.0,41775.0,0.26610549]
[1641708521749,0.7232632,41776.0,41775.0,0.54342956]
[1641708521949,0.7232632,41776.0,41775.0,0.59342956]
[1641708522149,0.7232632,41776.0,41775.0,0.69342956]
[1641708522351,0.7232632,41776.0,41775.0,1.07863856]
[1641708523798,0.72370736,41776.0,41775.0,1.07863856]
[1641708523994,0.72370736,41776.0,41775.0,1.08163856]
[1641708523995,0.7232632,41776.0,41775.0,1.08163856]
[1641708525302,0.7232632,41776.0,41775.0,1.07863856]
[1641708525998,0.72326343,41776.0,41775.0,1.08163856]
[1641708527252,0.72326343,41776.0,41775.0,1.07863856]
[1641708528053,0.72326343,41776.0,41775.0,1.08163856]
[1641708529256,0.71826343,41776.0,41775.0,1.07863856]
[1641708530055,0.71826343,41776.0,41775.0,1.08163856]
[1641708530510,0.71826342,41776.0,41775.0,1.08163856]
[1641708531304,0.71826342,41776.0,41775.0,1.07863856]
[1641708531499,0.7187078,41776.0,41775.0,1.07863856]
[1641708531700,0.71826342,41776.0,41775.0,1.07863856]
[1641708533404,0.71826342,41776.0,41775.0,1.086273]
[1641708536351,0.71826342,41776.0,41775.0,1.48161]
[1641708538001,0.71826342,41776.0,41775.0,1.086273]
[1641708538902,0.01669056,41781.0,41779.0,0.14351856]
[1641708539103,0.01669056,41781.0,41780.0,0.92063072]
[1641708539302,0.01669056,41781.0,41780.0,0.542835]
[1641708539502,0.01669056,41781.0,41780.0,0.642835]
[1641708540102,0.01669056,41781.0,41780.0,0.645835]
[1641708540300,0.01669056,41781.0,41780.0,1.04500779]
[1641708541007,0.01669056,41781.0,41780.0,1.487433]
[1641708541200,0.00909091,41781.0,41780.0,1.487433]
[1641708541450,0.00909091,41781.0,41780.0,1.484433]
[1641708542047,0.00909091,41781.0,41780.0,1.487433]
[1641708542449,0.00909091,41781.0,41780.0,1.08826021]
[1641708542652,0.00909091,41781.0,41780.0,0.495835]
[1641708543249,0.00909091,41781.0,41780.0,0.492835]
[1641708543652,0.00954407,41781.0,41780.0,0.88253192]
[1641708544049,0.00954407,41781.0,41780.0,0.495835]
[1641708545307,0.00954407,41781.0,41780.0,0.492835]
[1641708545809,0.00045316,41781.0,41780.0,0.492835]
[1641708546007,0.00045316,41781.0,41780.0,0.696835]
[1641708546209,0.00116814,41786.0,41780.0,0.696835]
[1641708546409,0.00116814,41786.0,41783.0,0.059839]
[1641708546810,0.00116814,41786.0,41783.0,0.11967406]
[1641708547006,0.00362762,41787.0,41783.0,0.17950806]
[1641708547206,0.00124875,41788.0,41783.0,0.169673]
[1641708547606,0.00124875,41788.0,41783.0,0.05]
[1641708548007,0.00124875,41788.0,41782.0,0.05]
[1641708548208,0.0004509,41786.0,41783.0,0.002]
[1641708548813,0.1,41784.0,41779.0,0.14351856]
[1641708549063,0.71797,41783.0,41779.0,0.14351856]
[1641708549763,0.36725232,41781.0,41779.0,0.14351856]
[1641708549962,0.71797,41780.0,41779.0,0.14351856]
[1641708550162,0.71797,41780.0,41779.0,0.24351856]
[1641708550968,1.13924556,41780.0,41779.0,0.24351856]
[1641708551165,1.13489799,41780.0,41779.0,0.24351856]
[1641708551766,1.13489799,41780.0,41779.0,0.14351856]
[1641708552065,1.13589799,41780.0,41779.0,0.14351856]
[1641708552269,1.23589799,41780.0,41779.0,0.14351856]
[1641708552706,1.23715377,41780.0,41779.0,0.14351856]
[1641708552904,1.13715377,41780.0,41779.0,0.14351856]
[1641708553105,1.58715377,41780.0,41779.0,0.14351856]
[1641708553303,1.58615377,41780.0,41779.0,0.14351856]
[1641708553504,1.48615377,41780.0,41779.0,0.14351856]
[1641708553703,1.13615377,41780.0,41779.0,0.14351856]
[1641708554106,1.13715377,41780.0,41779.0,0.14351856]
[1641708555905,1.13615377,41780.0,41779.0,0.14351856]
[1641708556105,1.43815377,41780.0,41779.0,0.14351856]
[1641708556306,1.01687821,41780.0,41779.0,0.14351856]
[1641708556951,1.36687821,41780.0,41779.0,0.14351856]
[1641708557151,0.14351856,41779.0,41776.0,0.4570597]
[1641708557353,0.14351856,41779.0,41776.0,0.45705951]
[1641708557354,1.55380012,41777.0,41776.0,0.45705951]
[1641708557552,2.26742255,41777.0,41776.0,0.45705951]
[1641708558149,2.26942255,41777.0,41776.0,0.45705951]
[1641708558350,2.26942255,41777.0,41776.0,0.45742367]
[1641708558551,2.26942255,41777.0,41776.0,0.45705953]
[1641708558751,0.45669537,41776.0,41775.0,0.00763444]
[1641708558950,1.23148988,41776.0,41775.0,0.00763444]
[1641708560202,1.23348988,41776.0,41775.0,0.00763444]
[1641708561002,1.45348988,41776.0,41775.0,0.00763444]
[1641708561399,1.45148988,41776.0,41775.0,0.00763444]
[1641708562199,1.45348988,41776.0,41775.0,0.00763444]
[1641708563501,1.45148988,41776.0,41775.0,0.00763444]
[1641708564156,1.45448988,41776.0,41775.0,0.00763444]
[1641708565352,1.45148988,41776.0,41775.0,0.00763444]
[1641708566153,1.45448988,41776.0,41775.0,0.00763444]
[1641708567155,1.91618974,41776.0,41775.0,0.00763444]
[1641708567355,1.91318974,41776.0,41775.0,0.00763444]
[1641708568001,1.45148988,41776.0,41775.0,0.00763444]
[1641708568203,1.39461718,41776.0,41775.0,0.00763444]
[1641708569505,1.87377577,41776.0,41775.0,0.00763444]
[1641708570102,1.88077577,41776.0,41775.0,0.00763444]
[1641708570904,1.39861718,41776.0,41775.0,0.00763444]
[1641708571303,1.81333435,41776.0,41775.0,0.00763444]
[1641708571563,1.39161718,41776.0,41775.0,0.00763444]
[1641708572164,1.39761718,41776.0,41775.0,0.00763444]
[1641708573463,1.39161718,41776.0,41775.0,0.00763444]
[1641708574266,1.39761718,41776.0,41775.0,0.00763444]
[1641708575397,1.39161718,41776.0,41775.0,0.00763444]
[1641708576199,1.45348218,41776.0,41775.0,0.00763444]
[1641708576701,1.39361718,41776.0,41775.0,0.00763444]
[1641708577501,1.39161718,41776.0,41775.0,0.00763444]
[1641708578201,1.39861718,41776.0,41775.0,0.00763444]
[1641708579750,1.75492048,41776.0,41775.0,0.00763444]
[1641708579953,1.74792048,41776.0,41775.0,0.00763444]
[1641708580152,1.75392048,41776.0,41775.0,0.00763444]
[1641708581354,1.74792048,41776.0,41775.0,0.00763444]
[1641708581555,1.39161718,41776.0,41775.0,0.00763444]
[1641708582154,1.39761718,41776.0,41775.0,0.00763444]
[1641708583409,1.39161718,41776.0,41775.0,0.00763444]
[1641708584209,1.39861718,41776.0,41775.0,0.00763444]
[1641708584511,1.82745693,41776.0,41775.0,0.00763444]
[1641708585008,1.39861718,41776.0,41775.0,0.00763444]
[1641708585409,1.39161718,41776.0,41775.0,0.00763444]
[1641708586109,1.39861718,41776.0,41775.0,0.00763444]
[1641708587449,1.39161718,41776.0,41775.0,0.00763444]
[1641708588250,1.39861718,41776.0,41775.0,0.00763444]
[1641708588650,1.82356836,41776.0,41775.0,0.00763444]
[1641708588849,1.39861718,41776.0,41775.0,0.00763444]
[1641708589350,1.39161718,41776.0,41775.0,0.00763444]
[1641708589549,1.82460244,41776.0,41775.0,0.00763444]
[1641708590203,1.83160244,41776.0,41775.0,0.00763444]
[1641708590806,1.39861718,41776.0,41775.0,0.00763444]
[1641708591006,1.82514615,41776.0,41775.0,0.00763444]
[1641708591208,1.39861718,41776.0,41775.0,0.00763444]
[1641708591406,1.81689468,41776.0,41775.0,0.00763444]
[1641708591606,1.39161718,41776.0,41775.0,0.00763444]
[1641708591816,1.3903178,41776.0,41775.0,0.00763444]
[1641708592209,1.3973178,41776.0,41775.0,0.00763444]
[1641708593411,1.3903178,41776.0,41775.0,0.00763444]
[1641708594254,1.3953178,41776.0,41775.0,0.00763444]
[1641708595064,1.3953178,41776.0,41775.0,0.05543444]
[1641708595255,1.3953178,41776.0,41775.0,0.29473544]
[1641708595455,1.3903178,41776.0,41775.0,0.29473544]
[1641708596255,1.3903178,41776.0,41775.0,0.29673544]
[1641708596858,1.3653178,41776.0,41775.0,0.29673544]
[1641708597057,1.3653178,41776.0,41775.0,0.41643114]
[1641708597457,1.3653178,41776.0,41775.0,0.41443114]
[1641708598311,1.3653178,41776.0,41775.0,0.41643114]
[1641708599510,1.3653178,41776.0,41775.0,0.41443114]
[1641708599709,1.3653178,41776.0,41775.0,0.17513014]
[1641708600311,1.3653178,41776.0,41775.0,0.05743444]
[1641708600914,1.3653178,41776.0,41775.0,0.00963444]
[1641708601112,1.79046911,41776.0,41775.0,0.00963444]
[1641708601556,1.79046911,41776.0,41775.0,0.00763444]
[1641708602157,1.79246911,41776.0,41775.0,0.00863444]
[1641708602556,1.85233538,41776.0,41775.0,0.00863444]
[1641708603559,1.85033538,41776.0,41775.0,0.00763444]
[1641708604258,1.85233538,41776.0,41775.0,0.00863444]
[1641708604458,1.79246911,41776.0,41775.0,0.00863444]
[1641708605505,1.79046911,41776.0,41775.0,0.00763444]
[1641708606406,1.84344237,41776.0,41775.0,0.00763444]
[1641708607406,1.84144237,41776.0,41775.0,0.00763444]
[1641708607706,1.79046911,41776.0,41775.0,0.00763444]
[1641708608105,1.3653178,41776.0,41775.0,0.00763444]
[1641708608307,1.3673178,41776.0,41775.0,0.00763444]
[1641708609554,1.3653178,41776.0,41775.0,0.00763444]
[1641708610254,1.3673178,41776.0,41775.0,0.00763444]
[1641708613707,1.3653178,41776.0,41775.0,0.00763444]
[1641708614308,1.3673178,41776.0,41775.0,0.00863444]
[1641708614910,1.3673178,41776.0,41775.0,0.176129]
[1641708615509,1.3653178,41776.0,41775.0,0.61980962]
[1641708615908,1.3653178,41776.0,41775.0,0.71980962]
[1641708616308,1.3653178,41776.0,41775.0,0.72280962]
[1641708616751,1.3653178,41776.0,41775.0,0.328129]
[1641708616952,1.3653178,41776.0,41775.0,0.713338]
[1641708617551,1.3653178,41776.0,41775.0,0.710338]
[1641708617752,1.3653178,41776.0,41775.0,1.13062325]
[1641708617956,0.72388334,41776.0,41775.0,1.13062325]
[1641708618154,0.72388334,41776.0,41775.0,1.72977206]
[1641708618353,0.14351856,41779.0,41775.0,1.73277206]
[1641708618555,0.14351856,41779.0,41778.0,0.983109]
[1641708618754,0.14351856,41779.0,41778.0,1.130909]
[1641708619058,0.00044192,41781.0,41780.0,0.00129244]
[1641708619059,0.00044194,41781.0,41780.0,0.00129244]
[1641708619254,0.00044194,41781.0,41780.0,0.43430144]
[1641708619553,0.00044194,41781.0,41780.0,0.63430144]
[1641708620204,0.00044197,41781.0,41780.0,1.08993188]
[1641708620407,0.00044197,41781.0,41780.0,1.14976288]
[1641708621609,0.00044197,41781.0,41780.0,1.14576288]
[1641708622407,0.00044197,41781.0,41780.0,1.14876288]
[1641708623610,0.00521343,41799.0,41781.0,1.05]
[1641708623811,0.00521343,41799.0,41798.0,0.15804168]
[1641708623812,0.00279343,41799.0,41798.0,0.15804168]
[1641708624069,0.71262343,41799.0,41798.0,0.30705007]
[1641708624269,0.61262343,41799.0,41798.0,0.30705007]
[1641708624466,0.51262343,41799.0,41798.0,0.40705007]
[1641708624665,0.00909091,41802.0,41801.0,0.60896618]
[1641708624862,0.00909091,41802.0,41801.0,0.84355926]
[1641708625064,0.00909091,41802.0,41801.0,0.75383569]
[1641708625464,0.00909091,41802.0,41801.0,1.35173569]
[1641708626264,0.00909091,41802.0,41801.0,1.35473569]
[1641708626666,0.00909091,41802.0,41801.0,1.77197228]
[1641708626867,0.00954161,41802.0,41801.0,1.77197228]
[1641708627267,0.0087288,41802.0,41801.0,1.77197228]
[1641708627466,0.0087288,41802.0,41801.0,1.76897228]
[1641708628313,0.0087288,41802.0,41801.0,1.77197228]
[1641708628512,0.0087288,41802.0,41801.0,1.35473569]
[1641708628713,0.0087288,41802.0,41801.0,1.70496583]
[1641708628915,0.0091795,41802.0,41801.0,1.35473569]
[1641708629113,0.0087288,41802.0,41801.0,1.35473569]
[1641708629712,0.0087288,41802.0,41801.0,1.35173569]
[1641708630315,0.0087288,41802.0,41801.0,1.35473569]
[1641708631118,0.00909091,41807.0,41802.0,0.45401597]
[1641708631317,0.00909091,41807.0,41804.0,0.11961782]
[1641708631565,0.00909091,41807.0,41805.0,0.483009]
[1641708632363,0.00909091,41807.0,41805.0,0.486009]
[1641708632563,0.00909091,41807.0,41806.0,0.059808]
[1641708632763,0.00909091,41807.0,41806.0,0.542817]
[1641708633664,0.00909091,41807.0,41806.0,0.483009]
[1641708633863,0.00909091,41807.0,41806.0,0.433009]
[1641708634064,0.00909091,41807.0,41806.0,0.0478]
[1641708634264,0.55909091,41807.0,41806.0,0.0508]
[1641708634865,1.27668091,41807.0,41806.0,0.0508]
[1641708635508,1.27668091,41807.0,41806.0,0.0478]
[1641708636109,1.27713049,41807.0,41806.0,0.0478]
[1641708636308,1.27713049,41807.0,41806.0,0.0508]
[1641708636608,1.27758007,41807.0,41806.0,0.0508]
[1641708636808,1.27713049,41807.0,41806.0,0.0508]
[1641708637008,0.72713049,41807.0,41806.0,0.0508]
[1641708637608,0.72713049,41807.0,41806.0,0.0478]
[1641708638309,0.72713049,41807.0,41806.0,0.0508]
[1641708639564,0.72713049,41807.0,41806.0,0.0478]
[1641708640365,0.72713049,41807.0,41806.0,0.0508]
[1641708641167,0.72712047,41807.0,41806.0,0.0508]
[1641708641567,0.72712047,41807.0,41806.0,0.0478]
[1641708642270,0.72712047,41807.0,41806.0,0.0508]
[1641708643606,0.72712047,41807.0,41806.0,0.0478]
[1641708644408,0.72712069,41807.0,41806.0,0.0518]
[1641708645407,0.72756047,41807.0,41806.0,0.0518]
[1641708645606,0.72756047,41807.0,41806.0,0.0978]
[1641708645607,0.72712069,41807.0,41806.0,0.0978]
[1641708645808,0.72712069,41807.0,41806.0,0.1478]
[1641708646457,0.72712069,41807.0,41806.0,0.271404]
[1641708646654,0.72712069,41807.0,41806.0,0.171404]
[1641708646863,0.72712069,41807.0,41806.0,0.0518]
[1641708647058,0.80687069,41807.0,41806.0,0.004]
[1641708647655,1.11999794,41807.0,41803.0,0.05]
[1641708648254,1.11999794,41807.0,41803.0,0.053]
[1641708648454,0.34183454,41805.0,41803.0,0.053]
[1641708648659,0.71759,41804.0,41803.0,0.053]
[1641708649659,0.71759,41804.0,41803.0,0.05]
[1641708650308,0.71759,41804.0,41803.0,0.053]
[1641708650715,0.71759,41804.0,41803.0,0.003]
[1641708650909,1.01759,41804.0,41803.0,0.003]
[1641708651711,1.01759,41804.0,41802.0,0.45401597]
[1641708651910,1.13725008,41804.0,41802.0,0.45401597]
[1641708652310,1.01859,41804.0,41802.0,0.45701597]
[1641708652512,0.71859,41804.0,41802.0,0.45701597]
[1641708654264,0.71859,41804.0,41803.0,0.05]
[1641708654465,0.71859,41804.0,41802.0,0.45901597]
[1641708655767,0.71759,41804.0,41802.0,0.45401597]
[1641708656367,0.71859,41804.0,41802.0,0.45601597]
[1641708657707,0.71759,41804.0,41802.0,0.45401597]
[1641708657906,0.71759,41804.0,41803.0,0.05]
[1641708659808,0.71759,41804.0,41802.0,0.56683054]
[1641708659809,0.71759,41804.0,41802.0,0.51383054]
[1641708660406,0.71759,41804.0,41802.0,0.51783054]
[1641708660605,0.71759,41804.0,41802.0,0.52546498]
[1641708660808,0.71759,41804.0,41802.0,0.46565041]
[1641708661662,0.71759,41804.0,41802.0,0.46165041]
[1641708662463,0.71759,41804.0,41802.0,0.46465041]
[1641708663265,0.71259,41804.0,41802.0,0.46465041]
[1641708663665,0.71259,41804.0,41802.0,0.46165041]
[1641708664565,0.71359,41804.0,41802.0,0.46465041]
[1641708666304,0.71259,41804.0,41802.0,0.46165041]
[1641708666507,0.71259,41804.0,41802.0,0.46465041]
[1641708667707,0.71259,41804.0,41802.0,0.46165041]
[1641708668409,0.71359,41804.0,41802.0,0.46365041]
[1641708669760,0.71259,41804.0,41802.0,0.46165041]
[1641708670358,0.71359,41804.0,41802.0,0.46365041]
[1641708671758,0.71259,41804.0,41802.0,0.46165041]
[1641708672363,0.71359,41804.0,41802.0,0.46365041]
[1641708673718,0.71259,41804.0,41802.0,0.46165041]
[1641708674115,0.71259,41804.0,41802.0,0.52146995]
[1641708674516,0.69359,41804.0,41802.0,0.52346995]
[1641708674915,0.69359,41804.0,41802.0,0.58328995]
[1641708675316,0.69359,41804.0,41803.0,0.119629]
[1641708675616,0.69259,41804.0,41803.0,0.119629]
[1641708676456,0.69359,41804.0,41803.0,0.121629]
[1641708677058,0.69359,41804.0,41803.0,0.221629]
[1641708678256,0.69259,41804.0,41803.0,0.219629]
[1641708678462,0.69359,41804.0,41803.0,0.221629]
[1641708679662,0.69259,41804.0,41803.0,0.219629]
[1641708680521,0.69359,41804.0,41803.0,0.221629]
[1641708681720,0.69259,41804.0,41803.0,0.219629]
[1641708682419,0.69359,41804.0,41803.0,0.221629]
[1641708683219,0.69359,41804.0,41803.0,0.121629]
[1641708683618,0.69259,41804.0,41803.0,0.219629]
[1641708684559,0.69259,41804.0,41803.0,0.221629]
[1641708684560,0.69359,41804.0,41803.0,0.221629]
[1641708685761,0.69259,41804.0,41803.0,0.219629]
[1641708686060,0.69175745,41804.0,41803.0,0.219629]
[1641708686463,0.69175745,41804.0,41803.0,0.221629]
[1641708687805,0.69175745,41804.0,41803.0,0.219629]
[1641708688407,0.69175745,41804.0,41803.0,0.221629]
[1641708689706,0.69175745,41804.0,41803.0,0.219629]
[1641708690406,0.69175745,41804.0,41803.0,0.221629]
[1641708691662,0.69175745,41804.0,41803.0,0.219629]
[1641708692459,0.69275745,41804.0,41803.0,0.221629]
[1641708693161,0.69275745,41804.0,41803.0,0.606838]
[1641708693761,0.69175745,41804.0,41803.0,0.604838]
[1641708694363,0.69175745,41804.0,41803.0,0.219629]
[1641708694564,0.69275745,41804.0,41803.0,0.221629]
[1641708694761,0.69275745,41804.0,41803.0,0.606838]
[1641708695211,0.69275745,41804.0,41803.0,0.221629]
[1641708695614,0.69175745,41804.0,41803.0,0.219629]
[1641708696415,0.69275745,41804.0,41803.0,0.221629]
[1641708697620,0.69175745,41804.0,41803.0,0.219629]
[1641708699758,0.69175745,41804.0,41803.0,0.214629]
[1641708700557,0.69275745,41804.0,41803.0,0.216629]
[1641708701761,0.69175745,41804.0,41803.0,0.214629]
[1641708702560,0.69275745,41804.0,41803.0,0.216629]
[1641708703809,0.69175745,41804.0,41803.0,0.214629]
[1641708704411,0.69275745,41804.0,41803.0,0.216629]
[1641708705811,0.69175745,41804.0,41803.0,0.214629]
[1641708706463,0.69275745,41804.0,41803.0,0.216629]
[1641708707759,0.69175745,41804.0,41803.0,0.214629]
[1641708708559,0.69275745,41804.0,41803.0,0.211629]
[1641708709971,0.69175745,41804.0,41803.0,0.209629]
[1641708710610,0.69275745,41804.0,41803.0,0.211629]
[1641708711811,0.69175745,41804.0,41803.0,0.209629]
[1641708712515,0.69275745,41804.0,41803.0,0.211629]
[1641708713813,0.69175745,41804.0,41803.0,0.209629]
[1641708714461,0.69275745,41804.0,41803.0,0.211629]
[1641708715764,0.69175745,41804.0,41803.0,0.209629]
[1641708716564,0.69275745,41804.0,41803.0,0.211629]
[1641708717815,0.69175745,41804.0,41803.0,0.209629]
[1641708718612,0.69275745,41804.0,41803.0,0.211629]
[1641708719114,0.69275745,41804.0,41803.0,0.121629]
[1641708719413,0.69275745,41804.0,41803.0,0.221629]
[1641708719814,0.69175745,41804.0,41803.0,0.219629]
[1641708720614,0.69275745,41804.0,41803.0,0.221629]
[1641708722368,0.69175745,41804.0,41803.0,0.219629]
[1641708722566,0.69275745,41804.0,41803.0,0.221629]
[1641708724567,0.69275745,41804.0,41803.0,0.223629]
[1641708725828,0.69175745,41804.0,41803.0,0.219629]
[1641708726431,0.69175745,41804.0,41803.0,0.604838]
[1641708726630,0.69175745,41804.0,41803.0,0.606838]
[1641708727930,0.69175745,41804.0,41803.0,0.604838]
[1641708728532,0.69175745,41804.0,41803.0,0.606838]
[1641708729866,0.69175745,41804.0,41803.0,0.604838]
[1641708730568,0.69175745,41804.0,41803.0,0.606838]
[1641708731765,0.69175745,41804.0,41803.0,0.604838]
[1641708732565,0.69175745,41804.0,41803.0,0.606838]
[1641708733910,0.69175745,41804.0,41803.0,0.604838]
[1641708734515,0.69175745,41804.0,41803.0,0.606838]
[1641708734721,0.69175745,41804.0,41803.0,1.14436482]
[1641708734917,0.69175745,41804.0,41803.0,1.19216482]
[1641708735116,0.69175745,41804.0,41803.0,0.754638]
[1641708735917,0.69175745,41804.0,41803.0,0.752638]
[1641708736561,0.69175745,41804.0,41803.0,0.755638]
[1641708737064,0.69175745,41804.0,41803.0,1.1574249]
[1641708737863,0.69175745,41804.0,41803.0,1.1544249]
[1641708738466,0.21342843,41804.0,41803.0,1.1544249]
[1641708738665,0.00953066,41807.0,41803.0,1.15871026]
[1641708738864,0.00953066,41807.0,41806.0,0.83420105]
[1641708739067,0.00953066,41807.0,41806.0,1.08200105]
[1641708740315,0.00953069,41807.0,41806.0,1.08200105]
[1641708740520,0.00953069,41807.0,41806.0,1.58600105]
[1641708741817,0.00953069,41807.0,41806.0,1.58200105]
[1641708742417,0.004,41809.0,41807.0,0.05978557]
[1641708742617,0.004,41809.0,41808.0,1.29131128]
[1641708742816,0.004,41809.0,41808.0,1.34131128]
[1641708743018,0.00085964,41811.0,41808.0,1.49131128]
[1641708743218,0.00085964,41811.0,41808.0,1.43152628]
[1641708743621,0.00085964,41811.0,41809.0,0.11956675]
[1641708743964,0.00085964,41811.0,41810.0,0.89428213]
[1641708744166,0.00085964,41811.0,41810.0,0.99428213]
[1641708744564,0.00085964,41811.0,41810.0,0.99928213]
[1641708744765,0.00085964,41811.0,41810.0,1.17863813]
[1641708745968,0.00085964,41811.0,41810.0,1.17363813]
[1641708746565,0.00085964,41811.0,41810.0,1.67763813]
[1641708748016,0.00085964,41811.0,41810.0,1.17763813]
[1641708748417,0.00085964,41811.0,41810.0,1.17363813]
[1641708748621,0.00085964,41811.0,41810.0,1.17763813]
[1641708750022,0.00085964,41811.0,41810.0,1.17363813]
[1641708750721,0.00085964,41811.0,41810.0,1.17763813]
[1641708752967,0.00952939,41812.0,41811.0,0.059781]
[1641708753266,0.00952939,41812.0,41811.0,0.95036195]
[1641708753667,0.00952939,41812.0,41811.0,1.05036195]
[1641708754571,0.0095294,41812.0,41811.0,1.05536195]
[1641708755213,0.0095294,41812.0,41811.0,1.55536195]
[1641708755418,0.0095294,41812.0,41811.0,1.55657362]
[1641708755614,0.00952962,41812.0,41811.0,1.55657362]
[1641708755814,0.00952962,41812.0,41811.0,1.55157362]
[1641708756416,0.00733432,41817.0,41811.0,1.55157362]
[1641708756615,0.00733432,41817.0,41813.0,0.119566]
[1641708756817,0.00733432,41817.0,41814.0,0.433009]
[1641708757015,0.718146,41815.0,41814.0,0.533009]
[1641708757215,0.718146,41815.0,41814.0,0.633009]
[1641708758216,0.718146,41815.0,41814.0,1.01936856]
[1641708758416,0.718146,41815.0,41814.0,0.633009]
[1641708758621,0.718146,41815.0,41814.0,0.637009]
[1641708759477,0.718146,41815.0,41814.0,1.01825457]
[1641708759874,0.718146,41815.0,41814.0,1.01425457]
[1641708760674,0.718146,41815.0,41814.0,1.01825457]
[1641708762078,0.718146,41815.0,41814.0,1.01425457]
[1641708762711,0.718146,41815.0,41814.0,1.01925457]
[1641708763612,0.718146,41815.0,41814.0,0.638009]
[1641708763812,0.718146,41815.0,41814.0,0.633009]
[1641708764715,0.718146,41815.0,41814.0,0.637009]
[1641708765321,0.718146,41815.0,41814.0,0.004]
[1641708766016,0.718146,41815.0,41813.0,0.23913138]
[1641708766219,0.45280187,41814.0,41813.0,0.23913138]
[1641708766469,1.17025187,41814.0,41813.0,0.23913138]
[1641708766670,1.17025187,41814.0,41813.0,0.24313138]
[1641708767067,1.17025187,41814.0,41813.0,0.34313138]
[1641708767269,1.60693765,41814.0,41813.0,0.34313138]
[1641708767468,1.26715187,41814.0,41813.0,0.063784]